bitfinex/quotes_SOLUSD_20250207
["timestamp","ask_amount","ask_price","bid_price","bid_amount"]
[1738943305832,24.13530955,199.45,199.39,5.0782]
[1738943306145,24.13530955,199.46,199.39,24.19830955]
[1738943306345,0.94012246,199.55,199.39,24.19830955]
[1738943306346,24.13530955,199.51,199.45,0.12549]
[1738943306539,24.13530955,199.51,199.44,24.13530955]
[1738943306540,24.13530955,199.54,199.47,24.26079955]
[1738943306736,24.13530955,199.53,199.46,24.13530955]
[1738943306943,24.13530955,199.52,199.45,24.13530955]
[1738943307249,4.009,199.55,199.4,26.40019272]
[1738943307250,24.13530955,199.47,199.4,24.13530955]
[1738943307425,24.13530955,199.49,199.43,0.25098]
[1738943307629,24.13530955,199.53,199.43,0.87885186]
[1738943307935,24.13530955,199.55,199.5,0.12549]
[1738943308454,24.13530955,199.54,199.49,5.0127]
[1738943308650,24.13530955,199.55,199.5,0.12549]
[1738943308845,24.13530955,199.56,199.5,0.12549]
[1738943309232,24.13530955,199.55,199.5,0.12549]
[1738943309732,24.13530955,199.54,199.46,24.13530955]
[1738943309932,24.13530955,199.5,199.44,5.014]
[1738943310141,24.13530955,199.48,199.42,5.0775]
[1738943310352,24.13530955,199.51,199.44,0.25098]
[1738943310558,24.13530955,199.52,199.45,24.26079955]
[1738943310736,24.13530955,199.54,199.51,312.0]
[1738943311147,24.13530955,199.52,199.42,29.21280955]
[1738943311353,24.13530955,199.46,199.42,0.063]
[1738943311533,24.13530955,199.44,199.42,0.063]
[1738943311941,24.13530955,199.43,199.42,0.063]
[1738943313158,37.54715808,199.43,199.42,0.063]
[1738943313664,28.14670955,199.43,199.42,0.063]
[1738943314056,24.13530955,199.43,199.42,0.063]
[1738943314856,28.14670955,199.43,199.42,0.063]
[1738943315062,24.13530955,199.43,199.42,0.063]
[1738943315259,24.13530955,199.46,199.42,0.063]
[1738943315465,30.78380955,199.48,199.42,0.063]
[1738943315671,34.79420955,199.48,199.42,0.063]
[1738943315967,24.13530955,199.45,199.42,0.063]
[1738943316166,24.13530955,199.46,199.42,0.063]
[1738943316361,24.13530955,199.47,199.42,0.063]
[1738943316561,30.78380955,199.48,199.42,0.063]
[1738943316858,24.13530955,199.48,199.42,0.063]
[1738943317169,10.0225,199.55,199.46,24.13530955]
[1738943317170,24.13530955,199.54,199.46,24.13530955]
[1738943317341,24.13530955,199.54,199.47,0.12549]
[1738943317539,24.13530955,199.55,199.47,24.26079955]
[1738943317739,24.13530955,199.54,199.48,5.013]
[1738943317939,4.0086,199.57,199.47,0.12549]
[1738943317940,24.13530955,199.52,199.47,0.12549]
[1738943318166,24.13530955,199.52,199.45,29.14880955]
[1738943318462,24.13530955,199.52,199.5,312.0]
[1738943318843,24.13530955,199.53,199.5,312.0]
[1738943319054,24.13530955,199.55,199.5,312.0]
[1738943319438,24.13530955,199.55,199.48,24.13530955]
[1738943319636,24.13530955,199.56,199.5,5.0125]
[1738943319859,24.13530955,199.56,199.51,0.12549]
[1738943320061,24.13530955,199.59,199.52,24.13530955]
[1738943320362,24.13530955,199.6,199.53,24.26079955]
[1738943320669,24.13530955,199.62,199.55,24.26079955]
[1738943320967,24.13530955,199.63,199.57,0.12549]
[1738943321861,24.13530955,199.63,199.58,5.0105]
[1738943322059,24.13530955,199.64,199.58,5.0105]
[1738943322245,24.13530955,199.65,199.59,0.12549]
[1738943322436,24.13530955,199.64,199.59,312.12549]
[1738943322861,24.13530955,199.64,199.59,0.12549]
[1738943323247,24.13530955,199.65,199.59,5.13559]
[1738943324567,24.13530955,199.64,199.59,5.13559]
[1738943324862,24.13530955,199.64,199.56,24.13530955]
[1738943325065,24.13530955,199.59,199.56,5.011]
[1738943325235,24.13530955,199.62,199.55,24.13530955]
[1738943325437,24.13530955,199.63,199.56,24.13530955]
[1738943325643,24.13530955,199.63,199.57,0.12549]
[1738943325951,24.13530955,199.63,199.57,0.25098]
[1738943326160,24.13530955,199.63,199.56,24.13530955]
[1738943326161,24.13530955,199.66,199.59,24.38628955]
[1738943326466,24.13530955,199.65,199.59,0.25098]
[1738943326673,0.03,199.67,199.56,24.13530955]
[1738943326674,24.13530955,199.63,199.56,24.13530955]
[1738943326962,24.13530955,199.61,199.54,29.14650955]
[1738943327145,24.13530955,199.61,199.55,0.25098]
[1738943327656,0.03,199.67,199.58,0.12549]
[1738943327657,24.13530955,199.64,199.58,0.12549]
[1738943327858,24.13530955,199.64,199.58,0.25098]
[1738943328240,24.16530955,199.67,199.61,0.12549]
[1738943328443,24.16530955,199.67,199.65,24.26079955]
[1738943328444,0.03,199.67,199.65,24.26079955]
[1738943328648,0.03,199.67,199.66,24.38628955]
[1738943328975,0.03,199.67,199.66,29.39478955]
[1738943329475,0.03,199.67,199.66,5.25948]
[1738943329779,0.03,199.67,199.66,29.39478955]
[1738943330798,0.03,199.75,199.67,0.25098]
[1738943331007,0.03,199.75,199.74,24.26079955]
[1738943331175,0.03,199.75,199.74,29.39278955]
[1738943332475,0.03,199.75,199.74,30.0174954]
[1738943333294,0.03,199.75,199.74,0.12549]
[1738943333803,0.03,199.75,199.74,29.39278955]
[1738943334900,0.03,199.75,199.74,30.01752124]
[1738943335477,0.03,199.75,199.74,0.12549]
[1738943335811,24.16530955,199.75,199.66,5.0085]
[1738943335975,24.13530955,199.72,199.66,5.0085]
[1738943336188,24.13530955,199.73,199.67,0.25098]
[1738943337176,24.13530955,199.74,199.67,29.39428955]
[1738943337512,24.13530955,199.73,199.67,5.25898]
[1738943337701,0.03,199.75,199.7,0.12549]
[1738943337993,24.16530955,199.75,199.69,0.12549]
[1738943338198,0.03,199.75,199.69,24.26079955]
[1738943338398,24.13530955,199.74,199.68,0.12549]
[1738943339684,24.13530955,199.74,199.68,5.13339]
[1738943339885,28.17040955,199.75,199.68,29.26869955]
[1738943340404,4.0351,199.75,199.68,29.26869955]
[1738943340589,24.13530955,199.74,199.68,5.13339]
[1738943340785,24.13530955,199.73,199.67,0.12549]
[1738943340991,24.16530955,199.75,199.69,0.12549]
[1738943341297,0.03,199.75,199.73,0.12549]
[1738943341686,0.03,199.75,199.74,24.13530955]
[1738943341881,0.03,199.75,199.74,25.01122007]
[1738943342689,0.03,199.82,199.75,0.25098]
[1738943342891,0.03,199.82,199.81,24.38628955]
[1738943343292,0.03,199.82,199.81,24.13530955]
[1738943343799,0.03,199.82,199.81,0.25098]
[1738943344308,0.03,199.82,199.81,24.38628955]
[1738943344806,0.03,199.82,199.81,29.39098955]
[1738943345195,0.03,199.82,199.81,0.12549]
[1738943345994,0.03,199.82,199.77,24.13530955]
[1738943346192,24.13530955,199.81,199.76,5.18]
[1738943346395,0.03,199.82,199.77,0.25098]
[1738943346595,0.03,199.82,199.79,0.25098]
[1738943346799,0.03,199.82,199.77,5.25658]
[1738943347308,24.16530955,199.82,199.77,0.25098]
[1738943347602,24.13530955,199.79,199.76,5.18]
[1738943347804,24.13530955,199.78,199.76,5.18]
[1738943348016,24.13530955,199.79,199.76,5.18]
[1738943348921,24.13530955,199.79,199.71,0.12549]
[1738943348922,24.13530955,199.77,199.71,0.12549]
[1738943349303,28.13970955,199.78,199.73,0.063]
[1738943349685,24.13530955,199.75,199.73,0.063]
[1738943350115,4.0044,199.78,199.73,0.063]
[1738943350431,24.13530955,199.74,199.73,0.063]
[1738943351137,28.14050955,199.74,199.73,0.063]
[1738943353123,28.14050955,199.74,199.65,24.13530955]
[1738943353329,24.13530955,199.74,199.67,0.25098]
[1738943353504,28.14020955,199.76,199.67,0.25098]
[1738943353703,4.0049,199.76,199.7,24.13530955]
[1738943353906,4.0049,199.76,199.68,24.13530955]
[1738943353907,24.13530955,199.75,199.68,24.13530955]
[1738943354115,24.13530955,199.75,199.67,24.13530955]
[1738943354308,24.13530955,199.74,199.68,0.12549]
[1738943354507,24.13530955,199.72,199.65,24.13530955]
[1738943354712,24.13530955,199.72,199.64,24.13530955]
[1738943354924,24.13530955,199.74,199.67,0.12549]
[1738943355108,24.13530955,199.72,199.67,0.12549]
[1738943355315,24.13530955,199.72,199.64,24.13530955]
[1738943355504,24.13530955,199.72,199.65,0.12549]
[1738943355828,24.13530955,199.71,199.65,0.12549]
[1738943356134,24.13530955,199.72,199.66,0.12549]
[1738943356315,24.13530955,199.69,199.62,24.13530955]
[1738943356511,24.13530955,199.66,199.59,83.61530955]
[1738943356818,24.13530955,199.67,199.6,24.38628955]
[1738943357011,28.14170955,199.68,199.61,24.13530955]
[1738943357331,28.14170955,199.68,199.6,5.26068]
[1738943357332,24.13530955,199.67,199.6,5.26068]
[1738943357504,24.13530955,199.66,199.6,5.26068]
[1738943358333,24.13530955,199.64,199.59,59.48]
[1738943358932,24.13530955,199.64,199.6,0.12549]
[1738943359229,24.13530955,199.61,199.59,59.48]
[1738943359417,24.13530955,199.61,199.54,29.14670955]
[1738943359626,14.35108308,199.68,199.53,24.13530955]
[1738943359627,24.13530955,199.6,199.53,24.13530955]
[1738943359998,24.13530955,199.6,199.54,0.25098]
[1738943360299,4.008,199.6,199.54,0.12549]
[1738943360494,4.008,199.6,199.51,24.13530955]
[1738943360495,24.13530955,199.58,199.51,24.13530955]
[1738943360704,24.13530955,199.61,199.54,24.38628955]
[1738943360899,28.14300955,199.62,199.55,24.13530955]
[1738943361201,4.0072,199.64,199.59,0.12549]
[1738943361628,4.0072,199.64,199.56,24.13530955]
[1738943361629,24.13530955,199.63,199.56,24.13530955]
[1738943361805,28.14250955,199.64,199.57,0.25098]
[1738943362802,24.13530955,199.58,199.51,24.13530955]
[1738943363128,24.13530955,199.59,199.53,0.12549]
[1738943363326,24.13530955,199.61,199.54,24.26079955]
[1738943363509,24.13530955,199.61,199.55,0.12549]
[1738943363821,24.13530955,199.58,199.54,0.063]
[1738943364015,24.13530955,199.56,199.54,0.063]
[1738943364214,24.13530955,199.57,199.54,0.063]
[1738943364411,24.13530955,199.58,199.54,0.063]
[1738943366323,28.14380955,199.58,199.54,0.063]
[1738943366828,28.14240955,199.65,199.57,24.38628955]
[1738943367035,24.13530955,199.68,199.62,0.12549]
[1738943367641,24.13530955,199.67,199.62,0.12549]
[1738943367811,24.13530955,199.66,199.59,24.13530955]
[1738943368013,24.13530955,199.66,199.58,29.14560955]
[1738943368221,24.13530955,199.66,199.59,24.38628955]
[1738943368417,24.13530955,199.65,199.59,0.25098]
[1738943368614,24.13530955,199.64,199.59,0.25098]
[1738943368812,24.13530955,199.64,199.57,29.14600955]
[1738943369012,24.13530955,199.64,199.58,0.25098]
[1738943369317,24.13530955,199.66,199.58,24.38628955]
[1738943369508,28.14190955,199.67,199.61,0.12549]
[1738943369713,24.13530955,199.65,199.6,0.12549]
[1738943369947,24.13530955,199.66,199.6,0.12549]
[1738943370440,24.13530955,199.65,199.59,0.25098]
[1738943370832,24.13530955,199.64,199.56,29.14610955]
[1738943371037,24.13530955,199.66,199.58,24.13530955]
[1738943371329,28.14170955,199.68,199.6,24.38628955]
[1738943371546,24.13530955,199.67,199.6,24.38628955]
[1738943371847,24.13530955,199.64,199.6,0.12549]
[1738943372032,24.13530955,199.66,199.58,29.39668955]
[1738943372419,24.13530955,199.67,199.6,24.38628955]
[1738943372737,24.13530955,199.68,199.61,24.13530955]
[1738943373110,24.13530955,199.68,199.62,0.25098]
[1738943373714,24.13530955,199.68,199.6,24.38628955]
[1738943374115,28.14150955,199.69,199.62,0.25098]
[1738943374327,24.13530955,199.71,199.62,24.38628955]
[1738943374522,24.13530955,199.72,199.65,0.12549]
[1738943374725,24.13530955,199.66,199.59,24.13530955]
[1738943374923,24.13530955,199.7,199.62,24.13530955]
[1738943375117,24.13530955,199.7,199.63,0.25098]
[1738943375914,4.0062,199.69,199.63,0.25098]
[1738943376924,24.13530955,199.7,199.63,0.25098]
[1738943377122,28.14130955,199.7,199.63,5.26018]
[1738943377741,24.13530955,199.68,199.63,0.25098]
[1738943379032,24.13530955,199.68,199.63,5.26018]
[1738943380241,24.13530955,199.68,199.63,0.25098]
[1738943380537,24.13530955,199.66,199.6,5.0728]
[1738943380728,24.13530955,199.66,199.61,0.25098]
[1738943381032,24.13530955,199.66,199.61,0.12549]
[1738943381428,24.13530955,199.66,199.6,5.0728]
[1738943381429,24.13530955,199.66,199.6,0.31398]
[1738943382120,24.13530955,199.62,199.6,0.063]
[1738943383234,24.13530955,199.61,199.6,0.063]
[1738943383921,24.13530955,199.63,199.6,0.063]
[1738943384523,24.13530955,199.64,199.6,0.18849]
[1738943385141,24.13530955,199.65,199.6,0.18849]
[1738943385345,4.0064,199.68,199.6,0.063]
[1738943385346,24.13530955,199.63,199.6,0.063]
[1738943385843,10.0156,199.69,199.6,0.063]
[1738943385844,24.13530955,199.64,199.6,0.063]
[1738943386013,4.007,199.65,199.6,0.063]
[1738943386215,24.13530955,199.61,199.6,0.063]
[1738943387746,28.14310955,199.61,199.6,0.063]
[1738943388239,24.13530955,199.61,199.6,0.063]
[1738943388440,24.13530955,199.63,199.6,0.063]
[1738943389028,24.13530955,199.64,199.6,0.18849]
[1738943389327,24.13530955,199.63,199.6,0.063]
[1738943389534,24.13530955,199.62,199.6,0.063]
[1738943390134,24.13530955,199.64,199.6,0.063]
[1738943390342,24.13530955,199.66,199.61,0.12549]
[1738943390544,24.13530955,199.65,199.61,0.12549]
[1738943391243,24.13530955,199.66,199.61,0.12549]
[1738943391441,24.13530955,199.68,199.61,5.13509]
[1738943391943,24.13530955,199.67,199.61,5.13509]
[1738943392544,24.13530955,199.65,199.6,0.063]
[1738943392752,24.13530955,199.63,199.6,0.063]
[1738943393150,24.13530955,199.61,199.6,0.063]
[1738943396628,15.06779361,199.61,199.6,0.063]
[1738943397853,19.07559361,199.61,199.6,0.063]
[1738943398853,15.06779361,199.61,199.6,0.063]
[1738943399057,19.07559361,199.61,199.6,0.063]
[1738943400441,15.06779361,199.61,199.6,0.063]
[1738943400639,19.07559361,199.61,199.6,0.063]
[1738943400843,34.14338722,199.61,199.6,0.063]
[1738943401070,35.08299384,199.61,199.6,0.0001]
[1738943401249,35.08299384,199.61,199.54,0.063]
[1738943401250,20.0,199.58,199.54,0.063]
[1738943401561,15.06779361,199.55,199.54,0.063]
[1738943401954,15.06779361,199.6,199.54,0.063]
[1738943401955,15.06779361,199.6,199.54,0.18849]
[1738943402143,15.06779361,199.62,199.57,0.12549]
[1738943402338,15.06779361,199.59,199.55,5.13669]
[1738943402549,15.06779361,199.59,199.55,0.12549]
[1738943403455,15.06779361,199.6,199.55,0.25098]
[1738943403652,15.06779361,199.6,199.55,0.12549]
[1738943403853,15.06779361,199.56,199.54,0.063]
[1738943404051,15.06779361,199.55,199.54,0.063]
[1738943405744,19.07679361,199.55,199.54,0.063]
[1738943405951,15.06779361,199.55,199.54,0.063]
[1738943406179,19.07679361,199.55,199.54,0.063]
[1738943407449,15.06779361,199.56,199.54,0.063]
[1738943407741,15.06779361,199.57,199.54,0.063]
[1738943408180,15.06779361,199.56,199.54,0.063]
[1738943408457,4.008,199.6,199.54,0.063]
[1738943408458,15.06779361,199.55,199.54,0.063]
[1738943408778,15.06779361,199.56,199.54,0.063]
[1738943409270,15.06779361,199.61,199.54,0.18849]
[1738943409473,15.06779361,199.62,199.57,5.0107]
[1738943409654,15.06779361,199.61,199.56,5.13639]
[1738943410255,15.06779361,199.65,199.58,0.12549]
[1738943410564,15.06779361,199.64,199.59,0.12549]
[1738943411048,15.06779361,199.64,199.58,0.25098]
[1738943411562,4.0066,199.67,199.58,0.25098]
[1738943411563,15.06779361,199.63,199.58,5.13579]
[1738943411769,15.06779361,199.59,199.54,0.063]
[1738943411977,15.06779361,199.55,199.54,0.063]
[1738943412971,13.41184853,199.51,199.42,7.77022705]
[1738943413155,15.06779361,199.43,199.42,7.77022705]
[1738943413685,19.07919361,199.43,199.42,7.77022705]
[1738943413881,19.07919361,199.43,199.41,15.4144541]
[1738943414180,63.54743575,199.42,199.4,0.063]
[1738943414368,43.54743575,199.41,199.4,0.063]
[1738943414542,30.13558722,199.4,199.39,30.8919082]
[1738943414747,30.13558722,199.4,199.39,0.063]
[1738943414748,48.34365512,199.4,199.39,0.063]
[1738943415464,24.17182756,199.4,199.39,0.063]
[1738943416560,48.34365512,199.4,199.39,0.063]
[1738943416965,24.17182756,199.4,199.39,0.063]
[1738943418063,48.34365512,199.4,199.39,0.063]
[1738943418963,24.17182756,199.4,199.39,0.063]
[1738943419876,49.28417781,199.4,199.39,0.063]
[1738943420084,13.41184853,199.39,199.35,0.063]
[1738943420290,44.17182756,199.36,199.35,0.063]
[1738943421583,57.58367609,199.36,199.35,0.063]
[1738943421893,24.17182756,199.35,199.34,0.063]
[1738943422193,47.30957609,199.35,199.34,0.063]
[1738943423764,24.17182756,199.28,199.26,0.063]
[1738943424494,24.17182756,199.27,199.26,0.063]
[1738943425993,27.68462756,199.27,199.26,0.063]
[1738943426158,41.09647609,199.27,199.26,0.063]
[1738943428402,33.41184853,199.23,199.22,0.063]
[1738943428613,57.58367609,199.23,199.22,0.063]
[1738943428819,57.58367609,199.23,199.19,0.063]
[1738943429116,24.17182756,199.2,199.19,0.063]
[1738943429673,27.68562756,199.21,199.19,0.063]
[1738943429868,24.17182756,199.2,199.19,0.063]
[1738943430431,24.17182756,199.25,199.19,0.18849]
[1738943430913,24.17182756,199.26,199.2,0.12549]
[1738943431234,47.68462756,199.27,199.2,0.12549]
[1738943431530,24.17182756,199.25,199.2,0.12549]
[1738943432102,24.17182756,199.24,199.2,0.12549]
[1738943432303,23.5128,199.27,199.2,0.12549]
[1738943432304,24.17182756,199.25,199.2,0.12549]
[1738943432629,24.17182756,199.23,199.2,0.12549]
[1738943432943,0.94115537,199.3,199.22,24.17182756]
[1738943433121,3.5115,199.34,199.27,24.17182756]
[1738943433434,24.17182756,199.36,199.29,24.17182756]
[1738943433731,24.17182756,199.37,199.31,24.29731756]
[1738943433895,24.17182756,199.39,199.32,24.42280756]
[1738943434919,24.17182756,199.39,199.33,5.0168]
[1738943435101,24.20182756,199.4,199.34,0.12549]
[1738943435637,0.03,199.4,199.36,20.12549]
[1738943435850,0.03,199.4,199.39,48.59463512]
[1738943436016,0.0001,199.4,199.39,49.22268662]
[1738943436211,0.0001,199.4,199.39,25.05085906]
[1738943436719,3.5075,199.57,199.4,0.25098]
[1738943436922,24.17182756,199.54,199.47,0.12549]
[1738943437243,24.17182756,199.53,199.45,24.29731756]
[1738943437432,24.17182756,199.53,199.46,0.12549]
[1738943437627,24.17182756,199.53,199.47,0.25098]
[1738943438141,24.17182756,199.51,199.47,0.12549]
[1738943438348,24.17182756,199.5,199.42,24.17182756]
[1738943438529,3.5082,199.53,199.41,24.17182756]
[1738943438530,24.17182756,199.49,199.41,24.17182756]
[1738943438867,24.17182756,199.48,199.42,0.12549]
[1738943439020,24.17182756,199.47,199.42,0.12549]
[1738943439339,13.41184853,199.52,199.4,0.12549]
[1738943439340,24.17182756,199.45,199.4,0.12549]
[1738943439505,24.17182756,199.47,199.4,24.29731756]
[1738943439708,24.17182756,199.47,199.41,0.12549]
[1738943439908,24.17182756,199.49,199.42,24.29731756]
[1738943440138,24.17182756,199.53,199.46,24.29731756]
[1738943441139,24.17182756,199.54,199.48,0.12549]
[1738943441349,3.5079,199.55,199.48,0.12549]
[1738943441350,24.17182756,199.53,199.48,0.12549]
[1738943441829,24.17182756,199.53,199.47,0.25098]
[1738943442046,44.17182756,199.54,199.47,24.42280756]
[1738943442351,24.17182756,199.54,199.47,0.25098]
[1738943442962,24.17182756,199.54,199.47,5.26418]
[1738943443658,24.17182756,199.51,199.47,0.12549]
[1738943443867,24.17182756,199.48,199.41,24.17182756]
[1738943444033,24.17182756,199.49,199.42,0.25098]
[1738943444237,3.5081,199.54,199.45,24.42280756]
[1738943444238,24.17182756,199.52,199.45,24.42280756]
[1738943444663,24.17182756,199.53,199.45,24.42280756]
[1738943444866,24.17182756,199.51,199.45,0.12549]
[1738943445048,24.17182756,199.51,199.45,0.25098]
[1738943445544,24.17182756,199.5,199.43,24.17182756]
[1738943445758,24.17182756,199.49,199.42,29.18632756]
[1738943445979,24.17182756,199.49,199.43,0.25098]
[1738943446286,24.17182756,199.5,199.43,24.42280756]
[1738943446465,24.17182756,199.54,199.47,0.25098]
[1738943446778,24.17182756,199.55,199.49,0.25098]
[1738943447081,44.17182756,199.56,199.49,0.25098]
[1738943447387,24.17182756,199.53,199.45,29.18552756]
[1738943447550,24.17182756,199.53,199.47,0.25098]
[1738943447950,24.17182756,199.54,199.47,24.42280756]
[1738943448850,24.17182756,199.53,199.46,24.42280756]
[1738943449083,24.17182756,199.53,199.48,0.12549]
[1738943449968,24.17182756,199.54,199.48,0.12549]
[1738943451155,24.17182756,199.54,199.49,0.12549]
[1738943451802,24.17182756,199.55,199.49,0.12549]
[1738943452100,24.17182756,199.59,199.53,0.25098]
[1738943452266,24.20182756,199.6,199.53,0.25098]
[1738943452666,24.17182756,199.56,199.52,0.12549]
[1738943452873,24.17182756,199.55,199.52,0.12549]
[1738943453279,24.17182756,199.55,199.48,5.26398]
[1738943453473,24.17182756,199.54,199.48,5.26398]
[1738943453657,24.17182756,199.52,199.48,5.26398]
[1738943454789,24.17182756,199.53,199.48,5.26398]
[1738943455486,24.17182756,199.52,199.48,5.26398]
[1738943455689,24.17182756,199.55,199.47,24.17182756]
[1738943455874,3.537,199.6,199.52,0.25098]
[1738943456071,24.17182756,199.57,199.52,0.12549]
[1738943456468,0.03,199.6,199.53,0.12549]
[1738943456663,0.03,199.6,199.54,0.12549]
[1738943456870,0.03,199.6,199.55,0.12549]
[1738943457288,0.03,199.6,199.55,24.29731756]
[1738943457472,0.03,199.6,199.57,0.25098]
[1738943458684,0.03,199.6,199.59,0.12549]
[1738943460201,0.03,199.6,199.57,5.0107]
[1738943460491,24.20182756,199.6,199.54,5.0115]
[1738943460671,0.03,199.6,199.54,29.18332756]
[1738943460984,24.17182756,199.57,199.55,0.12549]
[1738943461170,24.17182756,199.56,199.47,24.17182756]
[1738943461365,24.17182756,199.48,199.43,5.0142]
[1738943461691,24.17182756,199.47,199.43,5.0142]
[1738943461877,24.17182756,199.46,199.43,5.0142]
[1738943462279,24.17182756,199.48,199.44,0.12549]
[1738943462586,24.17182756,199.51,199.44,24.42280756]
[1738943463387,24.17182756,199.51,199.44,0.25098]
[1738943463588,24.17182756,199.48,199.41,24.17182756]
[1738943463779,24.17182756,199.49,199.42,24.17182756]
[1738943463969,24.17182756,199.51,199.45,0.25098]
[1738943464369,24.17182756,199.5,199.47,0.12549]
[1738943464580,24.17182756,199.52,199.47,0.12549]
[1738943464789,24.17182756,199.53,199.47,0.12549]
[1738943464986,24.17182756,199.51,199.47,0.12549]
[1738943465193,24.17182756,199.53,199.47,0.25098]
[1738943465392,24.17182756,199.57,199.51,0.25098]
[1738943465585,24.20182756,199.6,199.53,24.42280756]
[1738943465771,0.03,199.6,199.56,0.25098]
[1738943466087,0.03,199.6,199.58,24.17182756]
[1738943466294,0.03,199.6,199.59,5.26118]
[1738943468694,0.03,199.6,199.55,12.528]
[1738943468695,0.03,199.6,199.56,24.17182756]
[1738943468866,24.20182756,199.6,199.54,5.0115]
[1738943469184,24.20182756,199.6,199.55,0.25098]
[1738943469382,0.03,199.6,199.55,0.25098]
[1738943469596,0.03,199.6,199.58,0.25098]
[1738943469774,0.03,199.6,199.58,0.87724314]
[1738943469975,0.03,199.6,199.59,5.26118]
[1738943470600,0.03,199.6,199.59,30.05952073]
[1738943470793,0.03,199.68,199.6,0.25098]
[1738943470983,0.03,199.68,199.63,0.25098]
[1738943471184,0.03,199.68,199.65,0.12549]
[1738943471680,0.03,199.68,199.67,24.42280756]
[1738943472003,0.03,199.68,199.67,29.43100756]
[1738943472311,0.03,199.68,199.67,5.25918]
[1738943473297,0.03,199.68,199.67,29.43100756]
[1738943473795,0.03,199.68,199.67,5.25918]
[1738943474570,0.03,199.68,199.67,0.25098]
[1738943475794,0.03,199.68,199.67,0.12549]
[1738943476295,24.20182756,199.68,199.62,5.0092]
[1738943476487,24.17182756,199.66,199.62,5.0092]
[1738943476691,24.17182756,199.66,199.59,25.80282756]
[1738943476890,24.17182756,199.67,199.6,29.18182756]
[1738943477194,0.03,199.68,199.63,0.12549]
[1738943477881,0.03,199.68,199.64,24.29731756]
[1738943478285,0.03,199.68,199.66,0.12549]
[1738943479000,0.03,199.68,199.65,0.25098]
[1738943479197,0.03,199.68,199.65,24.42280756]
[1738943479592,0.03,199.68,199.67,24.42280756]
[1738943480297,0.03,199.68,199.67,29.43100756]
[1738943480786,0.03,199.68,199.67,5.25918]
[1738943480991,0.03,199.68,199.62,5.1]
[1738943481185,24.17182756,199.67,199.62,10.1094]
[1738943481379,0.03,199.68,199.63,24.42280756]
[1738943481576,0.03,199.68,199.65,24.42280756]
[1738943481906,0.03,199.68,199.67,24.42280756]
[1738943482102,0.03,199.73,199.68,0.25098]
[1738943482400,0.03,199.73,199.72,29.42980756]
[1738943482777,0.03,199.73,199.72,30.42980756]
[1738943483197,0.03,199.73,199.72,29.42980756]
[1738943483585,0.03,199.73,199.72,5.13249]
[1738943483792,0.03,199.73,199.71,5.0072]
[1738943483994,0.03,199.73,199.72,0.12549]
[1738943484983,0.03,199.73,199.7,0.12549]
[1738943485294,0.03,199.73,199.69,5.0075]
[1738943485811,0.03,199.73,199.7,0.12549]
[1738943486802,0.03,199.73,199.68,5.008]
[1738943487114,0.03,199.73,199.67,24.17182756]
[1738943487318,0.03,199.73,199.71,0.12549]
[1738943487500,0.03,199.73,199.72,24.29731756]
[1738943487686,0.03,199.73,199.72,25.04788982]
[1738943488120,0.03,199.8,199.72,33.70538982]
[1738943488323,0.03,199.8,199.79,24.42280756]
[1738943488619,0.03,199.8,199.79,29.42800756]
[1738943489187,0.03,199.8,199.79,0.25098]
[1738943489484,0.03,199.8,199.75,24.17182756]
[1738943489681,0.03,199.8,199.78,24.42280756]
[1738943489905,0.03,199.8,199.79,24.42280756]
[1738943490115,0.03,199.8,199.79,25.04724716]
[1738943490609,0.03,199.8,199.79,0.25098]
[1738943490822,0.03,199.8,199.78,5.1]
[1738943491023,0.03,199.8,199.79,24.42280756]
[1738943491499,0.03,199.86,199.8,14.66282853]
[1738943491703,0.03,199.86,199.85,24.42280756]
[1738943491911,0.03,199.86,199.85,25.0465391]
[1738943492618,0.03,199.86,199.85,30.0502391]
[1738943493716,0.03,199.86,199.85,29.42650756]
[1738943494389,0.03,199.86,199.85,30.42650756]
[1738943494917,0.03,199.93,199.89,0.25098]
[1738943495239,0.03,199.93,199.92,24.42280756]